[Event "British Rapidplay Championship 2023"]
[Site "Mercure Bradford, Bankfield Hotel"]
[Date "2023.04.16"]
[Round "9.16"]
[White "Larchikov, Maksym"]
[Black "McCarthy, Damian M"]
[Result "0-1"]
[TimeControl "15 minutes plus 10 seconds per move"]
[WhiteElo "1871"]
[BlackElo "1860"]

1. d4 {[%clk 00:15:17]} {[%emt 00:00:03]} Nf6 {[%clk 00:15:15]} {[%emt
00:00:04]} 2. Nf3 {[%clk 00:15:24]} {[%emt 00:00:03]} e6 {[%emt 00:00:07]} 3.
c4 {[%clk 00:15:32]} Bb4+ {[%clk 00:15:27]} {[%emt 00:00:03]} 4. Bd2 {[%clk
00:15:37]} {[%emt 00:00:05]} Qe7 {[%clk 00:15:29]} {[%emt 00:00:08]} 5. e3
{[%clk 00:15:41]} {[%emt 00:00:06]} O-O {[%clk 00:15:01]} {[%emt 00:00:38]} 6.
Bd3 {[%clk 00:15:41]} {[%emt 00:00:10]} Bxd2+ {[%clk 00:14:25]} {[%emt
00:00:46]} 7. Qxd2 {[%clk 00:15:41]} {[%emt 00:00:10]} d6 {[%clk 00:14:23]}
{[%emt 00:00:12]} 8. e4 {[%clk 00:14:57]} {[%emt 00:00:54]} e5 {[%clk
00:14:21]} {[%emt 00:00:12]} 9. d5 {[%clk 00:14:48]} {[%emt 00:00:20]} a5
{[%clk 00:14:18]} {[%emt 00:00:12]} 10. Nc3 {[%clk 00:13:06]} {[%emt 00:01:51]}
Na6 {[%clk 00:13:43]} {[%emt 00:00:46]} 11. O-O {[%clk 00:11:35]} {[%emt
00:01:41]} Nc5 {[%clk 00:13:36]} {[%emt 00:00:17]} 12. Ne1 {[%clk 00:10:47]}
{[%emt 00:00:57]} Nh5 {[%clk 00:13:08]} {[%emt 00:00:38]} 13. Ne2 {[%clk
00:08:52]} {[%emt 00:02:05]} f5 {[%clk 00:11:09]} {[%emt 00:02:10]} 14. exf5
{[%clk 00:07:00]} {[%emt 00:02:02]} Nxd3 {[%clk 00:11:16]} {[%emt 00:00:03]} 15.
Nxd3 {[%clk 00:06:53]} {[%emt 00:00:16]} Bxf5 {[%clk 00:11:15]} {[%emt
00:00:11]} 16. f3 {[%clk 00:06:15]} {[%emt 00:00:48]} b6 {[%clk 00:10:20]}
{[%emt 00:01:05]} 17. Nf2 {[%clk 00:05:55]} {[%emt 00:00:30]} Bg6 {[%clk
00:10:05]} {[%emt 00:00:26]} 18. Nc3 {[%clk 00:05:20]} {[%emt 00:00:44]} Nf4
{[%clk 00:09:47]} {[%emt 00:00:28]} 19. Nce4 {[%clk 00:05:08]} {[%emt
00:00:22]} Rf5 {[%clk 00:07:18]} {[%emt 00:02:39]} 20. g3 {[%clk 00:04:03]}
{[%emt 00:01:15]} Rh5 {[%clk 00:06:36]} {[%emt 00:00:52]} 21. gxf4 {[%clk
00:03:59]} {[%emt 00:00:14]} Qh4 {[%emt 00:00:50]} 22. Nd3 {[%clk 00:03:52]}
exf4 {[%clk 00:05:33]} {[%emt 00:00:50]} 23. Nxf4 {[%clk 00:03:06]} {[%emt
00:00:56]} Rh6 {[%clk 00:03:56]} {[%emt 00:01:48]} 24. Ne6 {[%clk 00:02:17]}
{[%emt 00:00:59]} Bxe4 {[%clk 00:03:37]} {[%emt 00:00:29]} 25. fxe4 {[%clk
00:01:50]} {[%emt 00:00:36]} Rg6+ {[%clk 00:03:37]} {[%emt 00:00:09]} 26. Qg2
{[%clk 00:00:47]} {[%emt 00:01:14]} Rxg2+ {[%clk 00:03:31]} {[%emt 00:00:16]}
27. Kxg2 {[%clk 00:00:55]} {[%emt 00:00:02]} Qxe4+ {[%clk 00:03:21]} {[%emt
00:00:21]} 28. Kg1 {[%clk 00:01:02]} {[%emt 00:00:03]} Qxc4 {[%clk 00:02:57]}
{[%emt 00:00:35]} 29. Rad1 {[%clk 00:00:56]} {[%emt 00:00:15]} Re8 {[%clk
00:02:39]} {[%emt 00:00:28]} 30. Rd4 {[%clk 00:01:00]} {[%emt 00:00:06]} Qxa2
{[%clk 00:01:52]} {[%emt 00:00:58]} 31. Rf2 {[%clk 00:00:15]} {[%emt 00:00:55]}
Rxe6 {[%clk 00:01:42]} {[%emt 00:00:20]} 32. dxe6 {[%clk 00:00:22]} {[%emt
00:00:02]} Qxe6 {[%clk 00:01:50]} {[%emt 00:00:03]} 33. Rdf4 {[%clk 00:00:24]}
{[%emt 00:00:08]} h6 {[%clk 00:01:53]} {[%emt 00:00:07]} 34. Kg2 {[%clk
00:00:28]} {[%emt 00:00:06]} Qd5+ {[%clk 00:01:41]} {[%emt 00:00:22]} 35. Kg3
{[%clk 00:00:34]} {[%emt 00:00:04]} Qe5 {[%clk 00:01:46]} {[%emt 00:00:05]} 36.
Kg2 {[%clk 00:00:35]} {[%emt 00:00:09]} c5 {[%clk 00:01:22]} {[%emt 00:00:34]}
37. Rf5 {[%clk 00:00:36]} {[%emt 00:00:08]} Qe4+ {[%clk 00:01:26]} {[%emt
00:00:06]} 38. Kg3 {[%clk 00:00:44]} {[%emt 00:00:02]} d5 {[%emt 00:00:27]} 39.
h4 {[%clk 00:00:46]} d4 {[%emt 00:00:14]} 40. Rf8+ {[%clk 00:00:51]} Kh7 {[%clk
00:01:26]} {[%emt 00:00:02]} 41. R2f4 {[%clk 00:00:50]} {[%emt 00:00:10]} Qe1+
{[%clk 00:01:13]} {[%emt 00:00:23]} 42. Kg2 {[%clk 00:00:59]} {[%emt 00:00:02]}
d3 {[%clk 00:01:05]} {[%emt 00:00:18]} 43. Rd8 {[%clk 00:00:57]} {[%emt
00:00:12]} Qe2+ {[%clk 00:00:35]} {[%emt 00:00:40]} 44. Rf2 {[%clk 00:00:55]}
{[%emt 00:00:11]} Qg4+ {[%clk 00:00:39]} {[%emt 00:00:06]} 45. Kf1 {[%clk
00:01:03]} {[%emt 00:00:03]} Qh3+ {[%clk 00:00:34]} {[%emt 00:00:15]} 46. Ke1
{[%clk 00:01:08]} {[%emt 00:00:05]} Qxh4 {[%clk 00:00:42]} {[%emt 00:00:02]} 47.
Rxd3 {[%clk 00:01:13]} {[%emt 00:00:05]} a4 {[%clk 00:00:39]} {[%emt 00:00:13]}
48. Rd7 {[%clk 00:01:04]} {[%emt 00:00:18]} b5 {[%clk 00:00:26]} {[%emt
00:00:24]} 49. Rdd2 {[%clk 00:01:00]} {[%emt 00:00:14]} b4 {[%clk 00:00:26]}
{[%emt 00:00:09]} 50. Kd1 {[%clk 00:01:07]} {[%emt 00:00:03]} a3 {[%clk
00:00:25]} {[%emt 00:00:12]} 51. bxa3 {[%clk 00:01:14]} {[%emt 00:00:03]} bxa3
{[%clk 00:00:32]} {[%emt 00:00:03]} 52. Ra2 {[%clk 00:01:21]} {[%emt 00:00:02]}
Qd4+ {[%clk 00:00:38]} {[%emt 00:00:05]} 53. Ke1 {[%clk 00:01:24]} {[%emt
00:00:06]} Qe3+ {[%clk 00:00:40]} {[%emt 00:00:09]} 54. Rfe2 {[%clk 00:01:31]}
{[%emt 00:00:03]} Qc3+ {[%clk 00:00:46]} {[%emt 00:00:03]} 55. Kf2 {[%clk
00:01:38]} {[%emt 00:00:03]} h5 {[%clk 00:00:43]} {[%emt 00:00:14]} 56. Re3
{[%clk 00:01:46]} {[%emt 00:00:02]} Qf6+ {[%clk 00:00:42]} {[%emt 00:00:11]} 57.
Rf3 {[%clk 00:01:48]} {[%emt 00:00:07]} Qh4+ {[%clk 00:00:42]} {[%emt
00:00:10]} 58. Kg2 {[%clk 00:01:54]} {[%emt 00:00:04]} Qg4+ {[%clk 00:00:45]}
{[%emt 00:00:07]} 59. Kf2 {[%clk 00:02:00]} {[%emt 00:00:04]} Qd4+ {[%clk
00:00:46]} {[%emt 00:00:09]} 60. Kg2 {[%clk 00:02:08]} {[%emt 00:00:02]} c4
{[%clk 00:00:49]} {[%emt 00:00:08]} 61. Raxa3 {[%clk 00:02:14]} {[%emt
00:00:03]} h4 {[%clk 00:00:43]} {[%emt 00:00:17]} 62. Ra6 {[%clk 00:02:03]}
{[%emt 00:00:21]} g6 {[%clk 00:00:44]} {[%emt 00:00:09]} 63. Kh3 {[%clk
00:01:52]} {[%emt 00:00:21]} Kh6 {[%clk 00:00:43]} {[%emt 00:00:11]} 64. Rff6
{[%clk 00:01:52]} {[%emt 00:00:09]} Kh5 {[%clk 00:00:30]} {[%emt 00:00:23]} 65.
Rad6 {[%clk 00:01:34]} {[%emt 00:00:28]} Qe3+ {[%clk 00:00:30]} {[%emt
00:00:11]} 66. Kg2 {[%clk 00:01:32]} {[%emt 00:00:11]} g5 {[%clk 00:00:34]}
{[%emt 00:00:07]} 67. Rc6 {[%clk 00:01:30]} {[%emt 00:00:12]} c3 {[%clk
00:00:31]} {[%emt 00:00:13]} 68. Rh6+ {[%clk 00:01:34]} {[%emt 00:00:05]} Kg4
{[%clk 00:00:31]} {[%emt 00:00:11]} 69. Rc4+ {[%clk 00:01:42]} {[%emt
00:00:01]} Kf5 {[%clk 00:00:35]} {[%emt 00:00:06]} 70. Rhc6 {[%clk 00:01:50]}
{[%emt 00:00:03]} Qe2+ {[%clk 00:00:30]} {[%emt 00:00:15]} 71. Kg1 {[%clk
00:01:56]} {[%emt 00:00:04]} h3 {[%clk 00:00:33]} {[%emt 00:00:06]} 72. R6c5+
{[%clk 00:01:59]} {[%emt 00:00:08]} Kg6 {[%clk 00:00:38]} {[%emt 00:00:05]} 0-1

[Event "British Rapidplay Championship 2023"]
[Site "Mercure Bradford, Bankfield Hotel"]
[Date "2023.04.16"]
[Round "9.17"]
[White "Clark, Robert G"]
[Black "Buckley, Colm"]
[Result "1-0"]
[TimeControl "15 minutes plus 10 seconds per move"]
[WhiteElo "2008"]
[BlackElo "1870"]

1. c4 {[%clk 00:15:17]} {[%emt 00:00:02]} e6 {[%clk 00:15:17]} {[%emt
00:00:04]} 2. g3 {[%clk 00:15:26]} {[%emt 00:00:02]} d5 {[%clk 00:14:59]}
{[%emt 00:00:28]} 3. Bg2 {[%clk 00:15:33]} {[%emt 00:00:02]} Nf6 {[%clk
00:14:58]} {[%emt 00:00:11]} 4. Nf3 {[%clk 00:15:40]} {[%emt 00:00:03]} b6
{[%clk 00:14:02]} {[%emt 00:01:06]} 5. O-O {[%clk 00:15:38]} {[%emt 00:00:11]}
Bb7 {[%clk 00:14:11]} {[%emt 00:00:02]} 6. b3 {[%clk 00:15:22]} {[%emt
00:00:26]} Be7 {[%clk 00:14:15]} {[%emt 00:00:06]} 7. Bb2 {[%clk 00:15:30]}
{[%emt 00:00:02]} O-O {[%clk 00:14:18]} {[%emt 00:00:07]} 8. d3 {[%clk
00:15:21]} {[%emt 00:00:19]} c5 {[%clk 00:13:53]} {[%emt 00:00:34]} 9. cxd5
{[%clk 00:14:41]} {[%emt 00:00:51]} exd5 {[%clk 00:13:36]} {[%emt 00:00:27]} 10.
d4 {[%clk 00:13:31]} {[%emt 00:01:20]} Nbd7 {[%clk 00:11:58]} {[%emt 00:01:48]}
11. Nbd2 {[%clk 00:13:20]} {[%emt 00:00:20]} Rc8 {[%clk 00:11:20]} {[%emt
00:00:49]} 12. Rc1 {[%clk 00:12:56]} {[%emt 00:00:33]} Re8 {[%clk 00:11:14]}
{[%emt 00:00:17]} 13. e3 {[%clk 00:12:21]} {[%emt 00:00:45]} Ne4 {[%clk
00:09:08]} {[%emt 00:02:17]} 14. Nxe4 {[%clk 00:11:42]} {[%emt 00:00:50]} dxe4
{[%clk 00:09:16]} {[%emt 00:00:02]} 15. Nd2 {[%clk 00:11:39]} {[%emt 00:00:13]}
Bf6 {[%clk 00:07:37]} {[%emt 00:01:50]} 16. Nc4 {[%clk 00:09:51]} {[%emt
00:01:58]} Nf8 {[%clk 00:06:21]} {[%emt 00:01:26]} 17. dxc5 {[%clk 00:08:17]}
{[%emt 00:01:44]} Bxb2 {[%clk 00:06:10]} {[%emt 00:00:20]} 18. Nxb2 {[%clk
00:08:22]} {[%emt 00:00:05]} Rxc5 {[%clk 00:05:26]} {[%emt 00:00:55]} 19. Rxc5
{[%clk 00:07:52]} {[%emt 00:00:39]} bxc5 {[%clk 00:05:28]} {[%emt 00:00:08]} 20.
Qc2 {[%clk 00:07:31]} {[%emt 00:00:31]} Qe7 {[%clk 00:04:47]} {[%emt 00:00:51]}
21. Rd1 {[%clk 00:06:14]} {[%emt 00:01:26]} Nd7 {[%clk 00:03:17]} {[%emt
00:01:41]} 22. Nc4 {[%clk 00:05:29]} {[%emt 00:00:55]} f5 {[%clk 00:02:08]}
{[%emt 00:01:19]} 23. Nd6 {[%clk 00:05:07]} {[%emt 00:00:32]} Rb8 {[%clk
00:00:54]} {[%emt 00:01:24]} 24. Qc4+ {[%clk 00:04:25]} {[%emt 00:00:52]} Kf8
{[%clk 00:00:38]} {[%emt 00:00:27]} 25. Nxf5 {[%clk 00:03:38]} {[%emt
00:00:56]} Nb6 {[%clk 00:00:17]} {[%emt 00:00:32]} 26. Qc3 {[%clk 00:02:54]}
{[%emt 00:00:54]} 1-0

[Event "British Rapidplay Championship 2023"]
[Site "Mercure Bradford, Bankfield Hotel"]
[Date "2023.04.16"]
[Round "9.18"]
[White "Ackley, Peter JE"]
[Black "Slinger, AJ (Tony)"]
[Result "1/2-1/2"]
[TimeControl "15 minutes plus 10 seconds per move"]
[WhiteElo "2151"]
[BlackElo "1841"]

1. c4 {[%clk 00:15:19]} e5 {[%clk 00:15:12]} {[%emt 00:00:09]} 2. Nc3 {[%clk
00:15:28]} {[%emt 00:00:02]} Nf6 {[%clk 00:15:20]} {[%emt 00:00:01]} 3. Nf3
{[%clk 00:15:37]} {[%emt 00:00:01]} Nc6 {[%clk 00:15:29]} {[%emt 00:00:01]} 4.
e3 {[%clk 00:15:46]} {[%emt 00:00:01]} Bb4 {[%clk 00:15:38]} {[%emt 00:00:01]}
5. Qc2 {[%clk 00:15:55]} Bxc3 {[%clk 00:15:46]} {[%emt 00:00:01]} 6. Qxc3
{[%clk 00:16:02]} {[%emt 00:00:03]} Qe7 {[%clk 00:15:50]} {[%emt 00:00:06]} 7.
d4 {[%clk 00:15:47]} {[%emt 00:00:25]} exd4 {[%clk 00:15:53]} {[%emt 00:00:07]}
8. Nxd4 {[%clk 00:15:54]} {[%emt 00:00:02]} Nxd4 {[%clk 00:15:45]} {[%emt
00:00:18]} 9. Qxd4 {[%clk 00:16:01]} {[%emt 00:00:03]} O-O {[%clk 00:15:48]}
{[%emt 00:00:07]} 10. Bd3 {[%clk 00:14:48]} {[%emt 00:01:24]} d6 {[%clk
00:15:17]} {[%emt 00:00:41]} 11. b3 {[%clk 00:14:28]} {[%emt 00:00:29]} Qe5
{[%clk 00:15:04]} {[%emt 00:00:24]} 12. Bb2 {[%clk 00:14:25]} {[%emt 00:00:13]}
Qxd4 {[%clk 00:15:12]} {[%emt 00:00:02]} 13. Bxd4 {[%clk 00:14:32]} {[%emt
00:00:03]} Bd7 {[%clk 00:15:09]} {[%emt 00:00:12]} 14. Bxf6 {[%clk 00:14:35]}
{[%emt 00:00:07]} gxf6 {[%clk 00:15:17]} 15. Be4 {[%clk 00:14:14]} {[%emt
00:00:31]} Bc6 {[%clk 00:14:47]} {[%emt 00:00:40]} 16. Bxc6 {[%clk 00:14:13]}
{[%emt 00:00:12]} bxc6 {[%clk 00:14:55]} {[%emt 00:00:02]} 17. Kd2 {[%clk
00:14:21]} {[%emt 00:00:02]} Rfe8 {[%clk 00:14:43]} {[%emt 00:00:22]} 18. Kc3
{[%clk 00:14:30]} {[%emt 00:00:02]} c5 {[%clk 00:14:21]} {[%emt 00:00:31]} 19.
Rhd1 {[%clk 00:14:24]} {[%emt 00:00:16]} Re5 {[%clk 00:14:27]} {[%emt
00:00:04]} 20. Rd2 {[%clk 00:14:25]} {[%emt 00:00:09]} Rae8 {[%clk 00:14:11]}
{[%emt 00:00:27]} 21. Rad1 {[%clk 00:14:17]} {[%emt 00:00:18]} Kg7 {[%clk
00:14:14]} {[%emt 00:00:06]} 22. Rd5 {[%clk 00:14:16]} {[%emt 00:00:11]} Kg6
{[%clk 00:12:47]} {[%emt 00:01:37]} 23. a3 {[%clk 00:14:24]} {[%emt 00:00:03]}
a5 {[%clk 00:12:49]} {[%emt 00:00:08]} 24. Rxe5 {[%clk 00:13:41]} {[%emt
00:00:53]} fxe5 {[%clk 00:12:48]} {[%emt 00:00:10]} 25. Rb1 {[%clk 00:13:49]}
{[%emt 00:00:03]} Rb8 {[%clk 00:12:57]} {[%emt 00:00:02]} 26. b4 {[%clk
00:13:39]} {[%emt 00:00:20]} axb4+ {[%clk 00:12:53]} {[%emt 00:00:13]} 27. axb4
{[%clk 00:13:47]} {[%emt 00:00:02]} f5 {[%clk 00:12:58]} {[%emt 00:00:04]} 28.
Rb3 {[%clk 00:13:42]} {[%emt 00:00:16]} cxb4+ {[%clk 00:12:23]} {[%emt
00:00:45]} 29. Rxb4 {[%clk 00:13:50]} {[%emt 00:00:02]} Ra8 {[%clk 00:11:53]}
{[%emt 00:00:40]} 30. Rb7 {[%clk 00:13:37]} {[%emt 00:00:23]} Ra2 {[%clk
00:12:02]} {[%emt 00:00:02]} 31. Rxc7 {[%clk 00:13:43]} {[%emt 00:00:03]} Rxf2
{[%clk 00:12:10]} {[%emt 00:00:02]} 32. Rc6 {[%clk 00:13:44]} {[%emt 00:00:09]}
Rxg2 {[%clk 00:12:16]} {[%emt 00:00:04]} 33. Rxd6+ {[%clk 00:13:52]} {[%emt
00:00:02]} Kg5 {[%clk 00:12:22]} {[%emt 00:00:03]} 34. h4+ {[%clk 00:13:36]}
{[%emt 00:00:27]} Kxh4 {[%clk 00:12:01]} {[%emt 00:00:32]} 35. Rh6+ {[%clk
00:13:44]} {[%emt 00:00:02]} Kg3 {[%clk 00:12:06]} {[%emt 00:00:05]} 36. Rxh7
{[%clk 00:13:52]} {[%emt 00:00:01]} f4 {[%clk 00:12:14]} {[%emt 00:00:02]} 37.
exf4 {[%clk 00:12:56]} {[%emt 00:01:06]} exf4 {[%clk 00:12:23]} {[%emt
00:00:02]} 38. c5 {[%clk 00:12:50]} {[%emt 00:00:16]} f3 {[%clk 00:12:28]}
{[%emt 00:00:05]} 39. Kd4 {[%clk 00:12:15]} {[%emt 00:00:45]} f2 {[%clk
00:12:07]} {[%emt 00:00:32]} 40. Rf7 {[%clk 00:12:23]} {[%emt 00:00:02]} Rg1
{[%clk 00:12:15]} {[%emt 00:00:02]} 41. c6 {[%clk 00:12:11]} {[%emt 00:00:22]}
f1=Q {[%clk 00:12:22]} {[%emt 00:00:03]} 42. Rxf1 {[%clk 00:12:19]} {[%emt
00:00:02]} Rxf1 {[%clk 00:12:30]} {[%emt 00:00:02]} 43. Kd5 {[%clk 00:12:27]}
{[%emt 00:00:02]} Kf4 {[%clk 00:12:35]} {[%emt 00:00:05]} 44. c7 {[%clk
00:12:30]} {[%emt 00:00:07]} Rc1 {[%clk 00:12:43]} {[%emt 00:00:02]} 45. Kd6
{[%clk 00:12:34]} {[%emt 00:00:06]} Kf5 {[%clk 00:12:51]} {[%emt 00:00:02]} 46.
Kd7 {[%clk 00:12:33]} {[%emt 00:00:10]} Kf6 {[%clk 00:12:57]} {[%emt 00:00:05]}
47. c8=R {[%clk 00:12:35]} {[%emt 00:00:09]} Rxc8 {[%clk 00:13:05]} {[%emt
00:00:02]} 48. Kxc8 {[%clk 00:12:43]} {[%emt 00:00:02]} 1/2-1/2

[Event "British Rapidplay Championship 2023"]
[Site "Mercure Bradford, Bankfield Hotel"]
[Date "2023.04.16"]
[Round "9.19"]
[White "Sivanandan, Bodhana"]
[Black "Walton, Alan J"]
[Result "1-0"]
[TimeControl "15 minutes plus 10 seconds per move"]
[WhiteElo "1561"]
[BlackElo "2105"]

1. e4 {[%clk 00:15:18]} {[%emt 00:00:01]} e6 {[%clk 00:15:18]} {[%emt
00:00:02]} 2. d4 {[%clk 00:15:27]} {[%emt 00:00:01]} d5 {[%clk 00:15:26]}
{[%emt 00:00:02]} 3. Nd2 {[%clk 00:15:28]} {[%emt 00:00:09]} a6 {[%clk
00:15:35]} {[%emt 00:00:01]} 4. g3 {[%clk 00:15:11]} {[%emt 00:00:28]} Nf6
{[%clk 00:15:40]} {[%emt 00:00:04]} 5. e5 {[%clk 00:15:10]} {[%emt 00:00:12]}
Nfd7 {[%clk 00:15:48]} 6. Bg2 {[%clk 00:14:48]} {[%emt 00:00:32]} c5 {[%clk
00:15:56]} {[%emt 00:00:02]} 7. c3 {[%clk 00:14:57]} {[%emt 00:00:02]} b5
{[%clk 00:16:05]} {[%emt 00:00:01]} 8. Ne2 {[%clk 00:14:55]} {[%emt 00:00:11]}
Nc6 {[%clk 00:16:05]} {[%emt 00:00:09]} 9. O-O {[%clk 00:14:39]} {[%emt
00:00:26]} Qb6 {[%clk 00:16:08]} {[%emt 00:00:08]} 10. Nf3 {[%clk 00:13:58]}
{[%emt 00:00:51]} Bb7 {[%clk 00:15:56]} {[%emt 00:00:22]} 11. b3 {[%clk
00:12:07]} {[%emt 00:02:01]} h6 {[%emt 00:02:36]} 12. a4 {[%clk 00:09:58]} b4
{[%clk 00:15:53]} {[%emt 00:00:06]} 13. cxb4 {[%clk 00:09:32]} {[%emt
00:00:36]} cxb4 {[%clk 00:15:57]} {[%emt 00:00:06]} 14. Bd2 {[%clk 00:09:14]}
{[%emt 00:00:28]} O-O-O {[%clk 00:15:47]} {[%emt 00:00:21]} 15. Rc1 {[%clk
00:08:18]} {[%emt 00:01:06]} Kb8 {[%clk 00:15:55]} {[%emt 00:00:01]} 16. Be3
{[%clk 00:07:03]} {[%emt 00:01:25]} Be7 {[%clk 00:15:56]} {[%emt 00:00:09]} 17.
Ne1 {[%clk 00:06:52]} {[%emt 00:00:21]} Rc8 {[%clk 00:15:47]} {[%emt 00:00:20]}
18. Nd3 {[%clk 00:06:49]} {[%emt 00:00:13]} Na5 {[%clk 00:14:16]} {[%emt
00:01:41]} 19. f4 {[%clk 00:05:28]} {[%emt 00:01:31]} g6 {[%clk 00:14:03]}
{[%emt 00:00:22]} 20. Rxc8+ {[%clk 00:05:05]} {[%emt 00:00:33]} Rxc8 {[%clk
00:14:11]} {[%emt 00:00:03]} 21. Qb1 {[%clk 00:05:13]} Rc6 {[%clk 00:13:03]}
{[%emt 00:01:18]} 22. Rc1 {[%clk 00:05:08]} {[%emt 00:00:15]} Rxc1+ {[%clk
00:13:08]} {[%emt 00:00:06]} 23. Ndxc1 {[%clk 00:05:06]} {[%emt 00:00:11]} Ka7
{[%clk 00:12:44]} {[%emt 00:00:34]} 24. g4 {[%clk 00:04:48]} {[%emt 00:00:29]}
Nc6 {[%clk 00:12:39]} {[%emt 00:00:15]} 25. Qd3 {[%clk 00:04:15]} {[%emt
00:00:43]} a5 {[%clk 00:12:45]} {[%emt 00:00:04]} 26. Bf2 {[%clk 00:04:13]}
{[%emt 00:00:12]} Ba6 {[%clk 00:12:48]} {[%emt 00:00:06]} 27. Qc2 {[%clk
00:04:15]} {[%emt 00:00:08]} Kb7 {[%clk 00:12:26]} {[%emt 00:00:33]} 28. f5
{[%clk 00:04:13]} {[%emt 00:00:12]} Nf8 {[%clk 00:10:42]} {[%emt 00:01:53]} 29.
h4 {[%clk 00:03:54]} {[%emt 00:00:29]} Nb8 {[%clk 00:10:42]} {[%emt 00:00:10]}
30. f6 {[%clk 00:03:46]} {[%emt 00:00:18]} Bd8 {[%clk 00:10:50]} {[%emt
00:00:02]} 31. Be3 {[%clk 00:03:46]} {[%emt 00:00:10]} Nfd7 {[%clk 00:10:41]}
{[%emt 00:00:19]} 32. Kf2 {[%clk 00:03:24]} {[%emt 00:00:32]} Nxf6 {[%clk
00:10:45]} {[%emt 00:00:06]} 33. exf6 {[%clk 00:03:20]} {[%emt 00:00:15]} Bxf6
{[%clk 00:10:54]} {[%emt 00:00:01]} 34. h5 {[%clk 00:03:22]} {[%emt 00:00:08]}
Bh4+ {[%clk 00:10:33]} {[%emt 00:00:31]} 35. Kg1 {[%clk 00:03:16]} {[%emt
00:00:16]} gxh5 {[%clk 00:09:33]} {[%emt 00:01:10]} 36. gxh5 {[%clk 00:03:23]}
{[%emt 00:00:03]} Qd8 {[%clk 00:08:41]} {[%emt 00:01:02]} 37. Bxh6 {[%clk
00:03:05]} {[%emt 00:00:28]} Qg8 {[%clk 00:08:47]} {[%emt 00:00:03]} 38. Be3
{[%clk 00:02:54]} {[%emt 00:00:21]} Nc6 {[%clk 00:08:24]} {[%emt 00:00:33]} 39.
h6 {[%clk 00:02:27]} {[%emt 00:00:38]} Qg4 {[%clk 00:08:31]} {[%emt 00:00:02]}
40. Nd3 {[%clk 00:01:56]} {[%emt 00:00:42]} Kb6 {[%clk 00:07:17]} {[%emt
00:01:24]} 41. Qxc6+ {[%clk 00:01:50]} {[%emt 00:00:16]} Kxc6 {[%clk 00:07:23]}
{[%emt 00:00:04]} 42. Ne5+ {[%clk 00:01:58]} {[%emt 00:00:01]} Kb7 {[%clk
00:06:22]} {[%emt 00:01:11]} 43. Nxg4 {[%clk 00:02:07]} {[%emt 00:00:02]} Bxe2
{[%clk 00:06:30]} {[%emt 00:00:01]} 44. h7 {[%clk 00:02:16]} {[%emt 00:00:02]}
1-0